fUSD/lending_fUSD_20240214
["ID","MTS","AMOUNT","RATE_DAILY","PERIOD"]
[314045348,1707945092756,-343.81,0.00039726,15]
[314045349,1707945092766,-1606.08,0.00039726,7]
[314045350,1707945092775,-500.0,0.00039726,7]
[314045351,1707945092785,-595.12,0.00039726,7]
[314045352,1707945092794,-500.0,0.00039726,7]
[314045353,1707945092803,-1047.58,0.00039726,7]
[314045354,1707945092812,-681.83,0.00039726,7]
[314045355,1707945092822,-515.63,0.00039726,7]
[314045356,1707945092831,-1810.87,0.00039726,7]
[314045357,1707945092840,-805.31,0.00039726,7]
[314045358,1707945092850,-603.11,0.00039726,7]
[314045359,1707945092859,-500.0,0.00039726,7]
[314045360,1707945092868,-500.0,0.00039726,7]
[314045361,1707945092879,-513.07,0.00039726,7]
[314045362,1707945093009,-500.0,0.00039726,7]
[314045363,1707945093020,-841.02,0.00039726,7]
[314045364,1707945093030,-780.8,0.00039726,7]
[314045365,1707945093039,-662.19,0.00039726,7]
[314045366,1707945093049,-1486.64,0.00039726,7]
[314045367,1707945093058,-2858.66,0.00039726,7]
[314045368,1707945093068,-2047.91,0.00039726,7]
[314045369,1707945093077,-590.33,0.00039726,7]
[314045370,1707945093086,-786.93,0.00039726,7]
[314045371,1707945093096,-577.68,0.00039726,7]
[314045372,1707945093105,-1000.0,0.00039726,120]
[314045373,1707945093114,-3628.12,0.00039726,7]
[314045374,1707945093124,-4757.12,0.00039726,7]
[314045375,1707945093134,-1991.03,0.00039726,7]
[314045376,1707945093143,-598.4,0.00039726,7]
[314045377,1707945093153,-612.33,0.00039726,2]
[314045378,1707945093162,-500.0,0.00039726,7]
[314045379,1707945093171,-436.9638715,0.00039726,7]
[314045380,1707945093181,-617.82,0.00039726,7]
[314045381,1707945093191,-2139.36,0.00039726,7]
[314045382,1707945093200,-502.43,0.00039726,7]
[314045383,1707945093209,-685.44,0.00039726,7]
[314045384,1707945093222,-807.41,0.00039726,7]
[314045385,1707945093232,-730.2,0.00039726,7]
[314045386,1707945093242,-2211.07,0.00039726,7]
[314045387,1707945093252,-500.0,0.00039726,7]
[314045388,1707945093263,-500.0,0.00039726,7]
[314045389,1707945093274,-711.33,0.00039726,7]
[314045390,1707945093283,-743.99,0.00039726,7]
[314045391,1707945093293,-2294.91,0.00039726,7]
[314045392,1707945093303,-2043.37,0.00039726,7]
[314045393,1707945093313,-500.0,0.00039726,7]
[314045394,1707945093323,-594.55,0.00039726,7]
[314045395,1707945093333,-6637.56,0.00039726,7]
[314045396,1707945093343,-500.0,0.00039726,7]
[314045397,1707945093353,-500.0,0.00039726,7]
[314045398,1707945093363,-1343.45,0.00039726,7]
[314045399,1707945093373,-595.97,0.00039726,7]
[314045400,1707945093383,-1831.02,0.00039726,7]
[314045401,1707945093392,-1215.55,0.00039726,7]
[314045402,1707945093402,-1575.34,0.00039726,7]
[314045403,1707945093412,-500.0,0.00039726,31]
[314045404,1707945093421,-500.0,0.00039726,31]
[314045405,1707945093431,-500.0,0.00039726,31]
[314045406,1707945093440,-460.66,0.00039726,31]
[314045407,1707945093450,-1240.3,0.00039726,7]
[314045408,1707945093459,-1949.84,0.00039726,7]
[314045409,1707945093469,-500.0,0.00039726,7]
[314045410,1707945093478,-500.0,0.00039726,7]
[314045411,1707945093488,-1376.91,0.00039726,7]
[314045412,1707945093498,-1838.93,0.00039726,7]
[314045413,1707945093507,-1020.07,0.00039726,7]
[314045414,1707945093517,-535.81208035,0.00039726,7]
[314045415,1707945093526,-1264.88,0.00039726,7]
[314045416,1707945093536,-500.0,0.00039726,7]
[314045417,1707945093545,-4521.24,0.00039726,7]
[314045418,1707945093555,-4808.1,0.00039726,7]
[314045419,1707945093565,-791.66,0.00039726,7]
[314045420,1707945093575,-500.0,0.00039726,7]
[314045421,1707945093585,-1751.89,0.00039726,7]
[314045422,1707945093595,-660.03,0.00039726,7]
[314045423,1707945093604,-504.16,0.00039726,7]
[314045424,1707945093615,-665.94,0.00039726,7]
[314045425,1707945093625,-1411.1,0.00039726,7]
[314045426,1707945093634,-720.52,0.00039726,7]
[314045427,1707945093644,-1028.68,0.00039726,7]
[314045428,1707945093654,-1101.95,0.00039726,7]
[314045429,1707945093663,-633.08,0.00039726,7]
[314045430,1707945093674,-679.4,0.00039726,7]
[314045431,1707945093684,-1588.43,0.00039726,7]
[314045432,1707945093693,-859.31,0.00039726,7]
[314045433,1707945093703,-570.05,0.00039726,7]
[314045434,1707945093713,-2455.03,0.00039726,7]
[314045435,1707945093723,-6828.37,0.00039726,7]
[314045436,1707945093732,-7718.39,0.00039726,7]
[314045437,1707945093742,-500.0,0.00039726,7]
[314045438,1707945093751,-500.0,0.00039726,7]
[314045439,1707945093761,-500.0,0.00039726,7]
[314045440,1707945093771,-500.0,0.00039726,7]
[314045441,1707945093781,-730.4,0.00039726,7]
[314045442,1707945093791,-1547.02,0.00039726,7]
[314045443,1707945093800,-1211.6,0.00039726,7]
[314045444,1707945093810,-592.22,0.00039726,7]
[314045445,1707945093820,-1187.29,0.00039726,7]
[314045446,1707945093829,-500.0,0.00039726,7]
[314045447,1707945093839,-6862.69,0.00039726,7]
[314045448,1707945093849,-1752.35,0.00039726,7]
[314045449,1707945093858,-565.71,0.00039726,7]
[314045450,1707945093869,-551.53,0.00039726,7]
[314045451,1707945093879,-500.0,0.00039726,7]
[314045452,1707945093889,-828.25,0.00039726,7]
[314045453,1707945093898,-865.42,0.00039726,7]
[314045454,1707945093907,-5366.99,0.00039726,7]
[314045455,1707945093917,-1003.79,0.00039726,7]
[314045456,1707945093926,-1623.54,0.00039726,7]
[314045457,1707945093936,-1200.22,0.00039726,7]
[314045458,1707945093946,-558.49,0.00039726,7]
[314045459,1707945093957,-500.0,0.00039726,7]
[314045460,1707945093967,-1014.56,0.00039726,7]
[314045461,1707945093976,-995.34,0.00039726,7]
[314045462,1707945093986,-746.35,0.00039726,7]
[314045463,1707945093996,-501.11,0.00039726,7]
[314045464,1707945094006,-1044.44,0.00039726,7]
[314045465,1707945094016,-1716.87,0.00039726,7]
[314045466,1707945094025,-1848.23,0.00039726,7]
[314045467,1707945094039,-587.47,0.00039726,7]
[314045468,1707945094049,-1168.36,0.00039726,7]
[314045469,1707945094058,-2233.44,0.00039726,7]
[314045470,1707945094068,-500.0,0.00039726,7]
[314045471,1707945094077,-983.47,0.00039726,7]
[314045472,1707945094087,-580.91,0.00039726,7]
[314045473,1707945094097,-826.29,0.00039726,7]
[314045474,1707945094107,-972.52,0.00039726,7]
[314045475,1707945094116,-898.19,0.00039726,7]
[314045476,1707945094125,-500.0,0.00039726,7]
[314045477,1707945094134,-2032.9,0.00039726,7]
[314045478,1707945094144,-500.0,0.00039726,7]
[314045479,1707945094153,-500.0,0.00039726,7]
[314045480,1707945094162,-647.49,0.00039726,7]
[314045481,1707945094172,-551.52,0.00039726,7]
[314045482,1707945094182,-778.33,0.00039726,7]
[314045483,1707945094192,-500.0,0.00039726,7]
[314045484,1707945094202,-7693.98,0.00039726,7]
[314045485,1707945094212,-500.0,0.00039726,7]
[314045486,1707945094221,-3552.29,0.00039726,7]
[314045487,1707945094232,-630.27,0.00039726,7]
[314045488,1707945094241,-3310.79,0.00039726,7]
[314045489,1707945094251,-500.0,0.00039726,2]
[314045490,1707945094261,-151.02142,0.00039748,20]
[314045491,1707945094271,-151.0129,0.00039748,16]
[314045492,1707945094282,-151.021521,0.00039748,21]
[314045493,1707945094294,-100000.0,0.0003977,3]
[314045494,1707945094304,-347.36,0.00039779,2]
[314045495,1707945094315,-918.96373959,0.0003978,7]
[314045496,1707945094325,-2638.200543,0.000398,7]
[314045497,1707945094335,-171.423601,0.00039818,2]
[314045498,1707945094345,-163.279655,0.00039818,2]
[314045499,1707945094355,-651.282159,0.00039818,2]
[314045500,1707945094364,-816.874501,0.00039818,2]
[314045501,1707945094374,-677.786138,0.00039818,2]
[314045502,1707945094383,-2281.099806,0.00039818,2]
[314045503,1707945094392,-285.499401,0.00039818,2]
[314045504,1707945094402,-2281.099807,0.00039818,2]
[314045505,1707945094411,-285.499402,0.00039818,2]
[314045506,1707945094422,-2281.099806,0.00039818,2]
[314045507,1707945094432,-285.499401,0.00039818,2]
[314045508,1707945094441,-2281.099806,0.00039818,2]
[314045509,1707945094451,-285.499401,0.00039818,2]
[314045510,1707945094461,-235.40512823,0.00039821,2]
[314045511,1707945094470,-9884.907039,0.0003983,2]
[314045512,1707945094480,-151.021521,0.00039848,21]
[314045513,1707945094489,-1785.5,0.00039859,5]
[314045514,1707945094499,-500.0,0.00039873,2]
[314045515,1707945094508,-4750.65578079,0.00039898,2]
[314045516,1707945094517,-10158.485726,0.00039898,4]
[314045517,1707945094527,-1243.58534366,0.00039898,4]
[314045518,1707945094537,-36365.46448971,0.00039898,7]
[314045519,1707945094546,-276.37084227,0.00039899,4]
[314045520,1707945094555,-261.82623265,0.00039899,4]
[314045521,1707945094565,-1777.41,0.000399,5]
[314045522,1707945094574,-2348.35,0.000399,7]
[314045523,1707945094584,-2404.89,0.000399,7]
[314045524,1707945094593,-42045.42074271,0.000399,2]
[314045525,1707945094602,-3939.34,0.000399,2]
[314045526,1707945094612,-153.54697604,0.000399,6]
[314045527,1707945094621,-197.18562305,0.00039915,7]
[314045528,1707945094630,-280.64023693,0.00039915,7]
[314045529,1707945094640,-226.42063893,0.00039915,7]
[314045530,1707945094650,-272.00263243,0.00039915,7]
[314045531,1707945094659,-193.13769394,0.00039915,7]
[314045532,1707945094669,-179.83507406,0.00039915,7]
[314045533,1707945094679,-4505971.98526595,0.00039921,2]
[314045534,1707945094689,-2205.85243915,0.00039921,2]
[314045535,1707945094698,-1620.28700576,0.00039921,2]
[314045536,1707945094707,-808.0,0.00039947,2]
[314045537,1707945094718,-151.021521,0.00039948,21]
[314045538,1707945094727,-347.36,0.00039972,2]
[314045539,1707945094737,-200.0,0.00039987,5]
[314045540,1707945094746,-200.0,0.00039987,4]
[314045541,1707945094756,-308.49522328,0.00039998,4]
[314045542,1707945094766,-161.27842766,0.00039998,4]
[314045543,1707945094775,-13405.54479575,0.00039998,4]
[314045544,1707945094785,-402.68003383,0.00039998,4]
[314045545,1707945094794,-210.40039498,0.00039999,31]
[314045546,1707945094804,-500.0,0.00039999,31]
[314045547,1707945094813,-500.0,0.00039999,31]
[314045548,1707945094823,-500.0,0.00039999,31]
[314045549,1707945094833,-491.25022637,0.00039999,31]
[314045550,1707945094842,-626.84827713,0.00039999,31]
[314045551,1707945094851,-219.7103427,0.00039999,31]
[314045552,1707945094860,-500.0,0.00039999,31]
[314045553,1707945094870,-172.73295732,0.00039999,31]
[314045554,1707945094879,-500.0,0.00039999,31]
[314045555,1707945095023,-500.0,0.00039999,31]
[314045556,1707945095034,-500.0,0.00039999,31]
[314045557,1707945095045,-512.65746631,0.00039999,31]
[314045558,1707945095055,-500.0,0.00039999,31]
[314045559,1707945095065,-288.31412456,0.00039999,31]
[314045560,1707945095075,-581.63356704,0.00039999,31]
[314045561,1707945095085,-500.0,0.00039999,31]
[314045562,1707945095095,-500.0,0.00039999,31]
[314045563,1707945095105,-500.0,0.00039999,31]
[314045564,1707945095116,-500.0,0.00039999,31]
[314045565,1707945095127,-500.0,0.00039999,31]
[314045566,1707945095137,-463.55724302,0.00039999,31]
[314045567,1707945095147,-500.0,0.00039999,31]
[314045568,1707945095157,-500.0,0.00039999,31]
[314045569,1707945095168,-500.0,0.00039999,31]
[314045570,1707945095177,-312.91719486,0.00039999,31]
[314045571,1707945095187,-629.31264663,0.00039999,31]
[314045572,1707945095196,-500.0,0.00039999,31]
[314045573,1707945095206,-500.0,0.00039999,31]
[314045574,1707945095216,-500.0,0.00039999,31]
[314045575,1707945095226,-500.0,0.00039999,31]
[314045576,1707945095236,-500.0,0.00039999,31]
[314045577,1707945095246,-410.02877009,0.00039999,31]
[314045578,1707945095255,-500.0,0.00039999,31]
[314045579,1707945095265,-500.0,0.00039999,31]
[314045580,1707945095276,-500.0,0.00039999,31]
[314045581,1707945095285,-500.0,0.00039999,31]
[314045582,1707945095294,-500.0,0.00039999,31]
[314045583,1707945095304,-500.0,0.00039999,31]
[314045584,1707945095317,-500.0,0.00039999,31]
[314045585,1707945095327,-500.0,0.00039999,31]
[314045586,1707945095337,-500.0,0.00039999,31]
[314045587,1707945095347,-500.0,0.00039999,31]
[314045588,1707945095356,-500.0,0.00039999,31]
[314045589,1707945095365,-500.0,0.00039999,31]
[314045590,1707945095375,-500.0,0.00039999,31]
[314045591,1707945095386,-500.0,0.00039999,31]
[314045592,1707945095395,-500.0,0.00039999,31]
[314045593,1707945095405,-500.0,0.00039999,31]
[314045594,1707945095414,-500.0,0.00039999,31]
[314045595,1707945095423,-500.0,0.00039999,31]
[314045596,1707945095432,-500.0,0.00039999,31]
[314045597,1707945095442,-500.0,0.00039999,31]
[314045598,1707945095452,-500.0,0.00039999,31]
[314045599,1707945095461,-604.29804432,0.00039999,31]
[314045600,1707945095471,-500.0,0.00039999,31]
[314045601,1707945095480,-500.0,0.00039999,31]
[314045602,1707945095490,-500.0,0.00039999,31]
[314045603,1707945095499,-449.83844883,0.00039999,31]
[314045604,1707945095509,-500.0,0.00039999,31]
[314045605,1707945095518,-500.0,0.00039999,31]
[314045606,1707945095527,-216.28971393,0.00039999,31]
[314045607,1707945095537,-500.0,0.00039999,31]
[314045608,1707945095547,-200.0,0.00039999,31]
[314045609,1707945095556,-300.0,0.00039999,31]
[314045610,1707945095566,-162.7454319,0.00039999,31]
[314045611,1707945095576,-500.0,0.00039999,31]
[314045612,1707945095586,-500.0,0.00039999,31]
[314045613,1707945095596,-474.15782711,0.00039999,31]
[314045614,1707945095606,-100000.0,0.0004,40]
[314045615,1707945095615,-330627.99265943,0.0004,30]
[314045616,1707945095625,-1238.48474586,0.0004,90]
[314045617,1707945095636,-996843.01261103,0.0004,2]
[314045618,1707945095645,-1289.0,0.0004,30]
[314045619,1707945095655,-10000.0,0.0004,10]
[314045620,1707945095664,-7799.89646907,0.0004,14]
[314045621,1707945095673,-1997041.45134741,0.0004,4]
[314045622,1707945095683,-2000.0,0.0004,31]
[314045623,1707945095693,-1292.77627353,0.0004,14]
[314045624,1707945095702,-17537.21,0.0004,14]
[314045625,1707945095712,-1090.91775411,0.0004,4]
[314045626,1707945095721,-4379.65021028,0.0004,4]
[314045627,1707945095731,-2284.35645934,0.0004,4]
[314045628,1707945095740,-155.0,0.0004,4]
[314045629,1707945095750,-7891.47344314,0.0004,4]
[314045630,1707945095760,-155.0,0.0004,2]
[314045631,1707945095770,-447.21066158,0.0004,4]
[314045632,1707945095779,-22167.97866982,0.0004,4]
[314045633,1707945095789,-283344.77259259,0.0004,4]
[314045634,1707945096448,-961.08260261,0.0004,4]
[314045635,1707945096460,-492.89387823,0.0004,4]
[314045636,1707945096472,-1287.3598939,0.0004,4]
[314045637,1707945096484,-2158.96377159,0.0004,4]
[314045638,1707945097234,-500.0,0.0003493,2]
[314045639,1707945097244,-500.0,0.0003493,2]
[314045640,1707945097255,-500.0,0.0003493,2]
[314045641,1707945097265,-500.0,0.0003493,2]
[314045642,1707945097275,-500.0,0.0003493,2]
[314045643,1707945097285,-500.0,0.0003493,2]
[314045644,1707945097295,-500.0,0.00035616,7]
[314045645,1707945097304,-500.0,0.0003589,7]
[314045646,1707945097314,-280.91,0.00036164,7]
[314045647,1707945097324,-500.0,0.00039178,7]
[314045648,1707945097334,-500.0,0.00039452,7]
[314045649,1707945097343,-1313.58,0.00039452,7]
[314045650,1707945097353,-500.0,0.00039452,7]
[314045651,1707945097362,-569.11,0.00039726,7]
[314045652,1707945097371,-500.0,0.00039726,7]
[314045653,1707945097381,-208.36390387,0.00039726,7]
[314045654,1707945097390,-1313.58,0.00039726,7]
[314045655,1707945097400,-500.0,0.00039726,7]
[314045656,1707945097410,-162030.12404975,0.0004,4]
[314045657,1707945097421,-500.0,0.0004,5]
[314045658,1707945097431,-1269.46,0.0004,14]
[314045659,1707945097441,-199.88910803,0.0004,2]
[314045660,1707945097454,-5503.99600001,0.0004,2]
[314045661,1707945097467,-793.0,0.0004,2]
[314045662,1707945097491,-17208.54080396,0.0004,2]
[314045663,1707945097501,-171.73685383,0.0004,2]
[314045664,1707945097512,-1000.0,0.0004,2]
[314045665,1707945097522,-1000.0,0.0004,2]
[314045666,1707945097531,-2497.0,0.0004,7]
[314045667,1707945097541,-1000.0,0.0004,9]
[314045668,1707945097551,-1033.92333406,0.0004,2]
[314045669,1707945097562,-947.15,0.0004,7]
[314045670,1707945097571,-450.73644353,0.0004,10]
[314045671,1707945097580,-349.8616831,0.0004,10]
[314045672,1707945097589,-1848.92771934,0.0004,30]
[314045673,1707945097598,-271.70933458,0.0004,10]
[314045674,1707945097609,-268.50476642,0.0004,10]
[314045675,1707945097620,-498.64453498,0.0004,30]
[314045676,1707945097630,-232.27446052,0.0004,10]
[314045677,1707945097639,-255.51538744,0.0004,10]
[314045678,1707945097650,-376.61066649,0.0004,10]
[314045679,1707945097660,-29222.95965982,0.0004,30]
[314045680,1707945097669,-177.42473566,0.0004,30]
[314045681,1707945097678,-255.0,0.0004,12]
[314045682,1707945097688,-4460.21549429,0.0004,30]
[314045683,1707945097697,-164.39603989,0.0004,10]
[314045684,1707945097707,-5936.65353888,0.0004,10]
[314045685,1707945097716,-255.0,0.0004,12]
[314045686,1707945097725,-1238.18569699,0.0004,10]
[314045687,1707945097734,-314.91873475,0.0004,10]
[314045688,1707945097743,-2931.53592264,0.0004,30]
[314045689,1707945097752,-255.0,0.0004,12]
[314045690,1707945097761,-255.0,0.0004,12]
[314045691,1707945097770,-200.0,0.0004,15]
[314045692,1707945097780,-3000.0,0.0004,41]
[314045693,1707945097791,-3394.1654825,0.0004,30]
[314045694,1707945097802,-255.0,0.0004,12]
[314045695,1707945097813,-1000.0,0.0004,10]
[314045696,1707945097823,-158.3,0.0004,2]
[314045697,1707945097833,-497.09590595,0.0004,10]
[314045698,1707945097843,-556.75,0.0004,7]
[314045699,1707945097854,-586.75,0.0004,7]
[314045700,1707945097864,-799.09,0.0004,7]
[314045701,1707945097875,-899.57,0.0004,7]
[314045702,1707945097885,-2544.37,0.0004,7]
[314045703,1707945097896,-647.67,0.0004,7]
[314045704,1707945097906,-255.0,0.0004,12]
[314045705,1707945097916,-558.18,0.0004,7]
[314045706,1707945097926,-694.58,0.0004,7]
[314045707,1707945097937,-1144.53,0.0004,7]
[314045708,1707945097949,-500.0,0.0004,7]
[314045709,1707945097958,-500.0,0.0004,7]
[314045710,1707945097969,-500.0,0.0004,7]
[314045711,1707945097980,-3424.69,0.0004,7]
[314045712,1707945097990,-818.43,0.0004,7]
[314045713,1707945098000,-503.92,0.0004,7]
[314045714,1707945098011,-5392.04,0.0004,7]
[314045715,1707945098022,-906.19,0.0004,7]
[314045716,1707945098035,-549.23,0.0004,7]
[314045717,1707945098046,-500.0,0.0004,7]
[314045718,1707945098055,-822.06,0.0004,7]
[314045719,1707945098066,-500.0,0.0004,7]
[314045720,1707945098075,-3341.45,0.0004,7]
[314045721,1707945098085,-677.12,0.0004,7]
[314045722,1707945098095,-524.91711068,0.0004,7]
[314045723,1707945098106,-1761.82,0.0004,7]
[314045724,1707945098116,-609.74,0.0004,7]
[314045725,1707945098127,-500.0,0.0004,7]
[314045726,1707945098137,-802.92,0.0004,7]
[314045727,1707945098147,-13582.07,0.0004,7]
[314045728,1707945098156,-500.0,0.0004,7]
[314045729,1707945098165,-953.89,0.0004,7]
[314045730,1707945098175,-500.0,0.0004,7]
[314045731,1707945098184,-6234.22,0.0004,7]
[314045732,1707945098193,-586.78,0.0004,7]
[314045733,1707945098202,-1606.08,0.0004,7]
[314045734,1707945098211,-500.0,0.0004,7]
[314045735,1707945098221,-595.12,0.0004,7]
[314045736,1707945098230,-500.0,0.0004,7]
[314045737,1707945098239,-1047.58,0.0004,7]
[314045738,1707945098249,-681.83,0.0004,7]
[314045739,1707945098259,-515.63,0.0004,7]
[314045740,1707945098269,-1810.87,0.0004,7]
[314045741,1707945098278,-805.31,0.0004,7]
[314045742,1707945098287,-603.11,0.0004,7]
[314045743,1707945098297,-500.0,0.0004,7]
[314045744,1707945098306,-494.50211561,0.0004,7]
[314045745,1707945098315,-513.07,0.0004,7]
[314045746,1707945098324,-500.0,0.0004,7]
[314045747,1707945098333,-5523.26064815,0.0004,30]
[314045748,1707945098343,-841.02,0.0004,7]
[314045749,1707945098352,-780.8,0.0004,7]
[314045750,1707945098361,-662.19,0.0004,7]
[314045751,1707945098370,-1486.64,0.0004,7]
[314045752,1707945098379,-2858.66,0.0004,7]
[314045753,1707945098389,-590.33,0.0004,7]
[314045754,1707945098398,-786.93,0.0004,7]
[314045755,1707945098408,-150.0,0.0004,11]
[314045756,1707945098419,-577.68,0.0004,7]
[314045757,1707945098428,-1000.0,0.0004,120]
[314045758,1707945098438,-3628.12,0.0004,7]
[314045759,1707945098448,-4757.12,0.0004,7]
[314045760,1707945098459,-1991.03,0.0004,7]
[314045761,1707945098467,-598.4,0.0004,7]
[314045762,1707945098477,-612.33,0.0004,2]
[314045763,1707945098486,-500.0,0.0004,7]
[314045764,1707945098494,-3774.24344107,0.0004,10]
[314045765,1707945098504,-419.36038234,0.0004,10]
[314045766,1707945098514,-617.82,0.0004,7]
[314045767,1707945098523,-2139.36,0.0004,7]
[314045768,1707945098533,-502.43,0.0004,7]
[314045769,1707945098544,-685.44,0.0004,7]
[314045770,1707945098554,-807.41,0.0004,7]
[314045771,1707945098564,-730.2,0.0004,7]
[314045772,1707945098573,-2211.07,0.0004,7]
[314045773,1707945098582,-500.0,0.0004,7]
[314045774,1707945098591,-500.0,0.0004,7]
[314045775,1707945098603,-711.33,0.0004,7]
[314045776,1707945098613,-743.99,0.0004,7]
[314045777,1707945098624,-2294.91,0.0004,7]
[314045778,1707945098635,-2043.37,0.0004,7]
[314045779,1707945098646,-500.0,0.0004,7]
[314045780,1707945098657,-594.55,0.0004,7]
[314045781,1707945098666,-6637.56,0.0004,7]
[314045782,1707945098675,-500.0,0.0004,7]
[314045783,1707945098687,-500.0,0.0004,7]
[314045784,1707945098696,-1343.45,0.0004,7]
[314045785,1707945098706,-595.97,0.0004,7]
[314045786,1707945098716,-1831.02,0.0004,7]
[314045787,1707945098727,-1215.55,0.0004,7]
[314045788,1707945098738,-1575.34,0.0004,7]
[314045789,1707945098749,-1240.3,0.0004,7]
[314045790,1707945098759,-1949.84,0.0004,7]
[314045791,1707945098768,-500.0,0.0004,7]
[314045792,1707945098780,-500.0,0.0004,7]
[314045793,1707945098791,-1376.91,0.0004,7]
[314045794,1707945098801,-1838.93,0.0004,7]
[314045795,1707945098811,-1020.07,0.0004,7]
[314045796,1707945098822,-1264.88,0.0004,7]
[314045797,1707945098831,-500.0,0.0004,7]
[314045798,1707945098841,-4521.24,0.0004,7]
[314045799,1707945098853,-4808.1,0.0004,7]
[314045800,1707945098862,-791.66,0.0004,7]
[314045801,1707945098871,-532.66302215,0.0004,7]
[314045802,1707945098880,-1751.89,0.0004,7]
[314045803,1707945098889,-660.03,0.0004,7]
[314045804,1707945098901,-665.94,0.0004,7]
[314045805,1707945098911,-720.52,0.0004,7]
[314045806,1707945098920,-1411.1,0.0004,7]
[314045807,1707945098930,-1028.68,0.0004,7]
[314045808,1707945098938,-1101.95,0.0004,7]
[314045809,1707945098948,-633.08,0.0004,7]
[314045810,1707945098961,-679.4,0.0004,7]
[314045811,1707945098970,-1588.43,0.0004,7]
[314045812,1707945098979,-859.31,0.0004,7]
[314045813,1707945098989,-570.05,0.0004,7]
[314045814,1707945098998,-2455.03,0.0004,7]
[314045815,1707945099007,-6828.37,0.0004,7]
[314045816,1707945099017,-212.15319608,0.0004,7]
[314045817,1707945099026,-7718.39,0.0004,7]
[314045818,1707945099035,-500.0,0.0004,7]
[314045819,1707945099046,-500.0,0.0004,7]
[314045820,1707945099055,-500.0,0.0004,7]
[314045821,1707945099065,-730.4,0.0004,7]
[314045822,1707945099074,-1547.02,0.0004,7]
[314045823,1707945099083,-1211.6,0.0004,7]
[314045824,1707945099092,-183.562329,0.0004,30]
[314045825,1707945099102,-592.22,0.0004,7]
[314045826,1707945099111,-1187.29,0.0004,7]
[314045827,1707945099120,-6862.69,0.0004,7]
[314045828,1707945099129,-500.0,0.0004,7]
[314045829,1707945099139,-1752.35,0.0004,7]
[314045830,1707945099149,-565.71,0.0004,7]
[314045831,1707945099159,-551.53,0.0004,7]
[314045832,1707945099168,-500.0,0.0004,7]
[314045833,1707945099178,-828.25,0.0004,7]
[314045834,1707945099187,-865.42,0.0004,7]
[314045835,1707945099196,-255.0,0.0004,12]
[314045836,1707945099206,-5366.99,0.0004,7]
[314045837,1707945099216,-1003.79,0.0004,7]
[314045838,1707945099226,-1623.54,0.0004,7]
[314045839,1707945099235,-1200.22,0.0004,7]
[314045840,1707945099245,-558.49,0.0004,7]
[314045841,1707945099254,-500.0,0.0004,7]
[314045842,1707945099263,-1014.56,0.0004,7]
[314045843,1707945099272,-995.34,0.0004,7]
[314045844,1707945099282,-746.35,0.0004,7]
[314045845,1707945099291,-1044.44,0.0004,7]
[314045846,1707945099300,-501.11,0.0004,7]
[314045847,1707945099309,-1716.87,0.0004,7]